[Event "2nd Irena Warakomska Memorial-A"]
[Site "Suwalki"]
[Date "2018.08.03"]
[Round "3"]
[White "Jankowiak, Tomasz"]
[Black "Sliwicka, Alicja"]
[Result "1/2-1/2"]
[ECO "C05"]
[WhiteElo "2117"]
[BlackElo "2293"]
[Annotator "NA"]
[PlyCount "139"]
[EventDate "2018.08.01"]
[EventType "swiss"]
[EventCountry "POL"]
[SourceTitle "playchess.com"]
[Source "ChessBase"]
[SourceQuality "1"]
[TimeControl "40/5400+30:1800+30"]

1. e4 {[%emt 0:00:00]} e6 {[%emt 0:00:00]} 2. d4 {[%emt 0:00:00]} d5 {[%emt 0:00:00]} 3. Nd2 {[%emt 0:00:00]} Nf6 {[%emt 0:00:00]} 4. e5 {[%emt 0:00:00]} Nfd7 {[%emt 0:00:00]} 5. f4 {[%emt 0:01:35]} c5 {[%emt 0:00:41]} 6. c3 {[%emt 0:00:06]} Nc6 {[%emt 0:00:43]} 7. Ndf3 {[%emt 0:00:19]} Be7 {[%emt 0:02:06]} 8. g3 {[%emt 0:01:55] C05: French Tarrasch: 3...Nf6 4 e5 Nfd7, 5 f4 and 5 Bd3 sidelines} (8. Bd3 cxd4 9. cxd4 Qb6 10. Ne2 f6 11. a3 O-O 12. Qc2 h6 13. Nh4 fxe5 14. Bh7+ Kh8 15. Ng6+ Kxh7 16. Nxf8+ Kg8 17. Nxe6 exd4 {1-0 (27) Bilguun,S (2443)-Tomczak,J (2598) Suwalki 2017}) 8... b6 {[%emt 0:08:52]} 9. Bd3 {[%emt 0:06:50]} f5 {[%emt 0:03:19]} 10. Ne2 {[%emt 0:03:37]} O-O $146 {[%emt 0:02:31]} ({Predecessor:} 10... Bb7 11. Be3 Rc8 12. Kf2 Qc7 13. Kg2 Qb8 14. h3 Nf8 15. g4 g6 16. Qg1 a6 {1-0 (31) Ignat,I (1557)-Williams,P (1867) Herceg Novi 2008}) 11. Be3 {[%emt 0:03:45]} a5 {[%emt 0:02:05]} 12. Rc1 {[%emt 0:06:28]} c4 {[%emt 0:05:13]} 13. Bc2 {[%emt 0:06:16]} b5 {[%emt 0:00:53]} 14. h3 {[%emt 0:30:13]} Nb6 {[%emt 0:05:16]} 15. g4 {[%emt 0:03:37]} b4 {[%emt 0:03:29]} 16. Ra1 {[%emt 0:01:40]} a4 {[%emt 0:01:07]} 17. a3 {[%emt 0:00:20]} bxa3 {[%emt 0:01:19]} 18. bxa3 {[%emt 0:00:09]} Na5 {[%emt 0:00:40]} 19. Ra2 {[%emt 0:02:32]} Nb3 {[%emt 0:02:24]} 20. Ng3 {[%emt 0:01:21]} Ra6 {[%emt 0:04:31]} 21. Ke2 {[%emt 0:10:10]} Na8 {[%emt 0:00:38]} 22. Qb1 {[%emt 0:01:40]} Qd7 {[%emt 0:01:07]} 23. Qe1 {[%emt 0:02:51]} Nc7 {[%emt 0:02:49]} 24. Nd2 {[%emt 0:00:37]} Nb5 {[%emt 0:04:30]} 25. Nb1 {[%emt 0:00:18]} Qd8 {[%emt 0:04:06]} 26. Qg1 {[%emt 0:11:51]} Qa5 {[%emt 0:02:15]} 27. Qe1 {[%emt 0:01:38]} Bd7 {[%emt 0:02:55]} 28. Kf3 {[%emt 0:01:11]} Rf7 {[%emt 0:03:58]} 29. Kg2 {[%emt 0:00:32]} Qd8 {[%emt 0:01:13]} 30. Ne2 {[%emt 0:00:44]} Qf8 {[%emt 0:01:16]} 31. Bc1 {[%emt 0:00:09]} Be8 {[%emt 0:04:04]} 32. Bb2 {[%emt 0:00:15]} Kh8 {[%emt 0:06:26]} 33. g5 {[%emt 0:02:41]} Bd8 {[%emt 0:04:59]} 34. h4 {[%emt 0:00:36]} h5 {[%emt 0:02:59]} 35. Qf2 {[%emt 0:00:46]} g6 {[%emt 0:01:21]} 36. Rd1 {[%emt 0:00:10]} Rb7 {[%emt 0:00:36]} 37. Qe3 {[%emt 0:00:57]} Rab6 {[%emt 0:01:01]} 38. Kf1 {[%emt 0:00:36]} Na7 {[%emt 0:00:49]} 39. Bc1 {[%emt 0:00:28]} Na5 {[%emt 0:01:38]} 40. Ra1 {[%emt 0:00:00]} Be7 {[%emt 0:00:00]} 41. Ke1 {[%emt 0:04:47]} Bd7 {[%emt 0:01:45]} 42. Kf1 {[%emt 0:03:18]} Qb8 {[%emt 0:00:45]} 43. Nd2 {[%emt 0:00:18]} Nb3 {[%emt 0:02:14]} 44. Ra2 {[%emt 0:04:07]} Nc6 {[%emt 0:04:39]} 45. Ke1 {[%emt 0:01:48]} Nca5 {[%emt 0:04:23]} 46. Nb1 {[%emt 0:00:38]} Nxc1 {[%emt 0:01:47]} 47. Qxc1 {[%emt 0:00:11]} Rb2 {[%emt 0:02:42]} 48. Ra1 {[%emt 0:01:29]} Qf8 {[%emt 0:02:07]} 49. Kf2 {[%emt 0:00:51]} Bc6 {[%emt 0:03:03]} 50. Ke1 {[%emt 0:00:57]} Rxb1 {[%emt 0:03:55]} 51. Rxb1 {[%emt 0:01:03]} Bxa3 {[%emt 0:00:13]} 52. Qe3 {[%emt 0:01:09]} Nb3 {[%emt 0:00:10]} 53. Kf2 {[%emt 0:01:31]} Qb8 {[%emt 0:00:55]} 54. Kf1 {[%emt 0:01:38]} Be7 {[%emt 0:02:56]} 55. Nc1 {[%emt 0:01:27]} Nxc1 {[%emt 0:02:24]} 56. Rdxc1 {[%emt 0:00:16]} a3 {[%emt 0:00:32]} 57. Rxb7 {[%emt 0:02:39]} Qxb7 {[%emt 0:00:05]} 58. Rb1 {[%emt 0:01:01]} Qa7 {[%emt 0:00:39]} 59. Qc1 {[%emt 0:01:14]} Ba4 {[%emt 0:07:06]} 60. Bxa4 {[%emt 0:03:45]} Qxa4 {[%emt 0:00:04]} 61. Qd1 {[%emt 0:00:07]} Qa5 $11 {[%emt 0:01:43]} 62. Qc2 {[%emt 0:00:18]} Kg7 {[%emt 0:00:33]} 63. Ke2 {[%emt 0:02:12]} Kf7 {[%emt 0:00:35]} 64. Kd2 {[%emt 0:00:06]} Qa6 {[%emt 0:01:24]} 65. Qa2 {[%emt 0:02:01]} Qa7 {[%emt 0:00:48]} 66. Rb5 {[%emt 0:00:44]} Qa6 {[%emt 0:00:16]} 67. Rb8 {[%emt 0:00:24]} Qa7 {[%emt 0:00:09]} 68. Rb1 {[%emt 0:00:13]} Qa6 {[%emt 0:00:23]} 69. Ra1 {[%emt 0:00:20]} Qa4 {[%emt 0:00:40]} 70. Rb1 {[%emt 0:00:39]} 1/2-1/2

[Event "2nd Irena Warakomska Memorial-A"]
[Site "Suwalki"]
[Date "2018.08.03"]
[Round "3"]
[White "Tarun, V Kanth"]
[Black "Socko, Monika"]
[Result "0-1"]
[ECO "E20"]
[WhiteElo "2102"]
[BlackElo "2466"]
[Annotator "ChessBase"]
[PlyCount "94"]
[EventDate "2018.08.01"]
[EventType "swiss"]
[EventCountry "POL"]
[SourceTitle "playchess.com"]
[Source "ChessBase"]
[SourceQuality "1"]
[TimeControl "40/5400+30:1800+30"]

1. d4 {[%emt 0:00:00]} Nf6 {[%emt 0:00:00]} 2. c4 {[%emt 0:00:00]} e6 {[%emt 0:00:00]} 3. Nc3 {[%emt 0:00:00]} Bb4 {[%emt 0:00:00]} 4. f3 {[%emt 0:00:02]} c5 {[%emt 0:00:00]} 5. d5 {[%emt 0:00:04]} O-O {[%emt 0:00:22]} 6. e4 {[%emt 0:00:02]} d6 {[%emt 0:00:05]} 7. Bg5 {[%emt 0:03:40]} h6 {[%emt 0:00:29]} 8. Bh4 {[%emt 0:00:14]} exd5 {[%emt 0:00:43]} 9. cxd5 {[%emt 0:02:04]} Re8 {[%emt 0:01:11]} 10. Bb5 {[%emt 0:10:00]} Bd7 {[%emt 0:05:58]} 11. Bxd7 {[%emt 0:00:29]} Nbxd7 {[%emt 0:00:04]} 12. Nge2 {[%emt 0:01:04]} b5 {[%emt 0:02:47]} 13. O-O {[%emt 0:00:57]} a6 {[%emt 0:01:08]} 14. Qc1 {[%emt 0:23:34]} c4 {[%emt 0:05:45]} 15. Ng3 {[%emt 0:00:29]} Nf8 {[%emt 0:12:46]} 16. Nh5 {[%emt 0:13:39]} N8h7 {[%emt 0:00:21]} 17. Kh1 {[%emt 0:00:52]} Bc5 {[%emt 0:11:44]} 18. f4 {[%emt 0:11:19]} b4 {[%emt 0:01:51]} 19. Ne2 {[%emt 0:00:56]} Rxe4 {[%emt 0:25:30]} 20. Neg3 {[%emt 0:01:13]} Rd4 {[%emt 0:04:06]} 21. Nf5 {[%emt 0:09:41]} Rxd5 {[%emt 0:00:05]} 22. Nfxg7 {[%emt 0:00:18]} Bd4 {[%emt 0:02:30]} 23. Qxc4 {[%emt 0:09:17]} Qc8 {[%emt 0:02:32]} 24. Qe2 {[%emt 0:00:36]} Qg4 {[%emt 0:02:18]} 25. Qxg4 {[%emt 0:07:52]} Nxg4 {[%emt 0:00:02]} 26. Rfd1 {[%emt 0:00:21]} Ne3 {[%emt 0:00:34]} 27. Rxd4 {[%emt 0:03:29]} Rxd4 {[%emt 0:00:02]} 28. Bf2 {[%emt 0:00:00]} Rd1+ {[%emt 0:02:47]} 29. Rxd1 {[%emt 0:00:04]} Nxd1 {[%emt 0:00:01]} 30. Bd4 {[%emt 0:00:16]} Rc8 {[%emt 0:01:13]} 31. Nf5 {[%emt 0:00:47]} Rc1 {[%emt 0:00:15]} 32. Nxh6+ {[%emt 0:00:37]} Kf8 {[%emt 0:00:01]} 33. Kg1 {[%emt 0:01:49]} Nxb2+ {[%emt 0:03:26]} 34. Kf2 {[%emt 0:00:01]} Nd3+ {[%emt 0:00:54]} 35. Ke3 {[%emt 0:00:58]} Ne1 {[%emt 0:01:06]} 36. Bg7+ {[%emt 0:00:45]} Ke8 {[%emt 0:00:13]} 37. Kd2 {[%emt 0:00:09]} Rb1 {[%emt 0:00:24]} 38. g4 {[%emt 0:00:06]} Nf3+ {[%emt 0:00:34]} 39. Kc2 {[%emt 0:00:07]} Rh1 {[%emt 0:00:34]} 40. Nf5 {[%emt 0:00:00]} Kd7 {[%emt 0:00:00]} 41. Nh6 {[%emt 0:00:40]} a5 {[%emt 0:06:51]} 42. Nxf7 {[%emt 0:00:12]} a4 {[%emt 0:00:34]} 43. Ng3 {[%emt 0:04:19]} Rxh2+ {[%emt 0:00:04]} 44. Kb1 {[%emt 0:00:07]} Nd2+ {[%emt 0:02:35]} 45. Kc1 {[%emt 0:00:14]} b3 {[%emt 0:01:33]} 46. axb3 {[%emt 0:00:06]} Nxb3+ {[%emt 0:01:31]} 47. Kb1 {[%emt 0:00:01]} a3 {[%emt 0:00:26]} 0-1

[Event "2nd Irena Warakomska Memorial-A"]
[Site "Suwalki"]
[Date "2018.08.03"]
[Round "3"]
[White "Wacior, Maciej"]
[Black "Chylewski, Patryk"]
[Result "1/2-1/2"]
[ECO "D02"]
[WhiteElo "2081"]
[BlackElo "2270"]
[Annotator "NA"]
[PlyCount "67"]
[EventDate "2018.08.01"]
[EventType "swiss"]
[EventCountry "POL"]
[SourceTitle "playchess.com"]
[Source "ChessBase"]
[SourceQuality "1"]
[TimeControl "40/5400+30:1800+30"]

1. d4 {[%emt 0:00:00]} Nf6 {[%emt 0:00:00]} 2. Bf4 {[%emt 0:00:00]} d5 {[%emt 0:00:01]} 3. Nf3 {[%emt 0:00:00]} e6 {[%emt 0:00:15]} 4. e3 {[%emt 0:00:00]} c5 {[%emt 0:00:19]} 5. Bd3 {[%emt 0:02:26]} Nc6 {[%emt 0:02:52]} 6. c3 {[%emt 0:03:43]} Nh5 {[%emt 0:00:50]} 7. O-O {[%emt 0:03:27]} Nxf4 {[%emt 0:05:12]} 8. exf4 {[%emt 0:00:50]} Bd6 {[%emt 0:03:20]} 9. Ne5 {[%emt 0:04:48]} O-O {[%emt 0:08:23]} 10. Re1 {[%emt 0:07:43]} f5 {[%emt 0:09:54]} 11. dxc5 {[%emt 0:08:03]} Bxc5 {[%emt 0:01:47]} 12. b4 {[%emt 0:00:13]} Nxe5 {[%emt 0:08:08]} 13. fxe5 {[%emt 0:00:17]} Be7 {[%emt 0:01:50]} 14. a3 {[%emt 0:03:28]} a5 {[%emt 0:02:17]} 15. Nd2 {[%emt 0:00:29]} Bd7 {[%emt 0:00:56]} 16. Qe2 {[%emt 0:07:33]} Rc8 {[%emt 0:04:54]} 17. Rec1 {[%emt 0:09:12]} Bg5 {[%emt 0:05:01]} 18. c4 {[%emt 0:00:57]} dxc4 {[%emt 0:02:53]} 19. Rxc4 {[%emt 0:00:48]} Bxd2 {[%emt 0:07:17]} 20. Qxd2 {[%emt 0:00:40]} Bc6 {[%emt 0:02:35]} 21. b5 {[%emt 0:00:19]} Be4 {[%emt 0:10:58]} 22. Rxc8 {[%emt 0:00:05]} Qxc8 {[%emt 0:00:05]} 23. Bxe4 {[%emt 0:00:08]} fxe4 {[%emt 0:00:04]} 24. Rc1 {[%emt 0:02:13]} Qd8 {[%emt 0:01:54]} 25. Qd6 {[%emt 0:06:11]} Qxd6 {[%emt 0:03:49]} 26. exd6 {[%emt 0:00:04]} Rd8 {[%emt 0:00:13]} 27. Kf1 {[%emt 0:06:01]} Rxd6 {[%emt 0:05:22]} 28. Rc4 {[%emt 0:00:15]} Kf7 {[%emt 0:04:16]} 29. Rxe4 {[%emt 0:01:36]} Kf6 {[%emt 0:02:17]} 30. Ke2 {[%emt 0:00:31]} Rd5 {[%emt 0:00:57]} 31. a4 {[%emt 0:00:06]} Ke7 {[%emt 0:02:12]} 32. h4 {[%emt 0:02:54]} h5 {[%emt 0:00:45]} 33. Rc4 {[%emt 0:02:12]} Kd6 {[%emt 0:00:57]} 34. f4 {[%emt 0:00:57] Ke5} 1/2-1/2

[Event "2nd Irena Warakomska Memorial-A"]
[Site "Suwalki"]
[Date "2018.08.03"]
[Round "3"]
[White "Lisowski, Krzysztof"]
[Black "Bugalski, Michal"]
[Result "0-1"]
[ECO "C06"]
[WhiteElo "2072"]
[BlackElo "2263"]
[Annotator "NA"]
[PlyCount "60"]
[EventDate "2018.08.01"]
[EventType "swiss"]
[EventCountry "POL"]
[SourceTitle "playchess.com"]
[Source "ChessBase"]
[SourceQuality "1"]
[TimeControl "40/5400+30:1800+30"]

1. e4 {[%emt 0:00:00]} e6 {[%emt 0:00:00]} 2. d4 {[%emt 0:00:01]} d5 {[%emt 0:00:00]} 3. Nd2 {[%emt 0:00:08]} Nf6 {[%emt 0:00:00]} 4. e5 {[%emt 0:00:15]} Nfd7 {[%emt 0:00:00]} 5. Bd3 {[%emt 0:00:31]} c5 {[%emt 0:00:00]} 6. c3 {[%emt 0:00:07]} Nc6 {[%emt 0:00:01]} 7. Ne2 {[%emt 0:00:31]} cxd4 {[%emt 0:00:18]} 8. cxd4 {[%emt 0:00:13]} f6 {[%emt 0:00:05]} 9. exf6 {[%emt 0:00:16]} Nxf6 {[%emt 0:00:08]} 10. O-O {[%emt 0:00:32]} Bd6 {[%emt 0:00:07]} 11. Nf3 {[%emt 0:00:17]} Qc7 {[%emt 0:00:53]} 12. Bg5 {[%emt 0:02:20]} O-O {[%emt 0:00:48]} 13. Rc1 {[%emt 0:00:59]} Ng4 {[%emt 0:05:03]} 14. Ng3 {[%emt 0:15:48]} g6 {[%emt 0:08:32]} 15. a3 {[%emt 0:07:27]} Qb6 {[%emt 0:09:19]} 16. Be2 {[%emt 0:23:50]} Qxb2 {[%emt 0:04:44]} 17. Rb1 {[%emt 0:19:14]} Qxa3 {[%emt 0:01:29]} 18. Bd2 {[%emt 0:10:07]} Bf4 {[%emt 0:12:40]} 19. Ng5 {[%emt 0:09:50]} Qe7 {[%emt 0:13:49]} 20. h4 {[%emt 0:00:52]} Nxf2 {[%emt 0:01:28]} 21. Rxf2 {[%emt 0:00:34]} Bxg3 {[%emt 0:00:06]} 22. Rxf8+ Qxf8 {[%emt 0:00:05]} 23. Be3 {[%emt 0:05:47]} Bxh4 {[%emt 0:03:08]} 24. Qd2 {[%emt 0:00:46]} Qg7 {[%emt 0:02:59]} 25. Nf3 {[%emt 0:00:45]} Bf6 {[%emt 0:00:32]} 26. Bh6 {[%emt 0:01:00]} Bxd4+ {[%emt 0:03:43]} 27. Kh1 {[%emt 0:00:05]} Qe7 {[%emt 0:00:17]} 28. Rf1 {[%emt 0:00:42]} Bd7 {[%emt 0:02:26]} 29. Ng5 {[%emt 0:00:11]} Bf6 {[%emt 0:11:08]} 30. Bg4 {[%emt 0:01:09]} Nd4 {[%emt 0:01:45]} 0-1

[Event "2nd Irena Warakomska Memorial-A"]
[Site "Suwalki"]
[Date "2018.08.03"]
[Round "3"]
[White "Fiedorek, Michal"]
[Black "Krzywda, Andrzej"]
[Result "1/2-1/2"]
[ECO "B42"]
[WhiteElo "1970"]
[BlackElo "2296"]
[Annotator "NA"]
[PlyCount "81"]
[EventDate "2018.08.01"]
[EventType "swiss"]
[EventCountry "POL"]
[SourceTitle "playchess.com"]
[Source "ChessBase"]
[SourceQuality "1"]
[TimeControl "40/5400+30:1800+30"]

1. e4 {[%emt 0:00:00]} c5 {[%emt 0:00:00]} 2. Nf3 {[%emt 0:00:00]} e6 {[%emt 0:00:00]} 3. d4 {[%emt 0:00:00]} cxd4 {[%emt 0:00:00]} 4. Nxd4 {[%emt 0:00:07]} a6 {[%emt 0:00:44]} 5. Bd3 {[%emt 0:02:38]} d6 {[%emt 0:00:16]} 6. O-O {[%emt 0:00:29]} Nf6 {[%emt 0:00:47]} 7. Qe2 {[%emt 0:00:52]} Nbd7 {[%emt 0:03:24]} 8. c4 {[%emt 0:03:44]} g6 {[%emt 0:01:41]} 9. Nc3 {[%emt 0:02:09]} Bg7 {[%emt 0:02:35]} 10. Rd1 {[%emt 0:00:40]} O-O {[%emt 0:02:21]} 11. Nf3 {[%emt 0:01:49]} Qc7 {[%emt 0:02:53]} 12. Bf4 {[%emt 0:02:10]} Ne5 {[%emt 0:01:05]} 13. Nxe5 {[%emt 0:11:45]} dxe5 {[%emt 0:00:07]} 14. Be3 {[%emt 0:00:29]} Nd7 {[%emt 0:10:14]} 15. Rac1 {[%emt 0:03:01]} Nb8 {[%emt 0:03:07]} 16. f3 {[%emt 0:05:25]} Nc6 {[%emt 0:05:36]} 17. Qf2 {[%emt 0:04:05]} Nd4 {[%emt 0:01:10]} 18. Ne2 {[%emt 0:01:20]} Rd8 {[%emt 0:08:30]} 19. Bb1 {[%emt 0:03:28]} Nc6 {[%emt 0:07:19]} 20. Bb6 {[%emt 0:07:26]} Rxd1+ {[%emt 0:00:07]} 21. Rxd1 {[%emt 0:00:06]} Qe7 {[%emt 0:00:16]} 22. Qc5 {[%emt 0:06:55]} Bf8 {[%emt 0:05:09]} 23. Qxe7 {[%emt 0:02:30]} Bxe7 {[%emt 0:00:05]} 24. a3 {[%emt 0:07:45]} Kf8 {[%emt 0:00:25]} 25. b4 {[%emt 0:01:11]} Ke8 {[%emt 0:00:12]} 26. Nc1 {[%emt 0:07:07]} a5 {[%emt 0:06:37]} 27. b5 {[%emt 0:05:04]} Nb8 {[%emt 0:04:37]} 28. Nd3 {[%emt 0:04:18]} Nd7 {[%emt 0:00:32]} 29. Be3 {[%emt 0:00:26]} a4 {[%emt 0:07:22]} 30. c5 {[%emt 0:09:19]} Ra5 {[%emt 0:02:08]} 31. c6 {[%emt 0:04:06]} bxc6 {[%emt 0:10:21]} 32. bxc6 {[%emt 0:00:06]} Nb8 {[%emt 0:01:29]} 33. Bd2 {[%emt 0:00:44]} Ra6 {[%emt 0:03:26]} 34. Nxe5 {[%emt 0:03:21]} Nxc6 {[%emt 0:02:05]} 35. Nc4 {[%emt 0:01:27]} Bc5+ {[%emt 0:05:58]} 36. Be3 {[%emt 0:00:27]} Bxe3+ {[%emt 0:00:15]} 37. Nxe3 {[%emt 0:00:06]} Na5 {[%emt 0:02:51]} 38. Bc2 {[%emt 0:01:02]} Bd7 {[%emt 0:00:21]} 39. Rd4 {[%emt 0:00:32]} Nb3 {[%emt 0:01:40]} 40. Rb4 {[%emt 0:00:00]} Nc5 {[%emt 0:00:00]} 41. Nc4 {[%emt 0:02:51]} 1/2-1/2

[Event "2nd Irena Warakomska Memorial-A"]
[Site "Suwalki"]
[Date "2018.08.03"]
[Round "4"]
[White "Ovsejevitsch, Sergei"]
[Black "Harshini, A."]
[Result "1-0"]
[ECO "D80"]
[WhiteElo "2597"]
[BlackElo "2124"]
[Annotator "ChessBase"]
[PlyCount "101"]
[EventDate "2018.08.01"]
[EventType "swiss"]
[EventCountry "POL"]
[SourceTitle "playchess.com"]
[Source "ChessBase"]
[SourceQuality "1"]
[TimeControl "40/5400+30:1800+30"]

1. d4 {[%emt 0:00:00]} Nf6 {[%emt 0:00:00]} 2. c4 {[%emt 0:00:00]} g6 {[%emt 0:00:00]} 3. Nc3 {[%emt 0:00:03]} d5 {[%emt 0:00:06]} 4. e3 {[%emt 0:03:09]} Bg7 {[%emt 0:00:11]} 5. Qb3 {[%emt 0:00:13]} c6 {[%emt 0:02:36]} 6. Nf3 {[%emt 0:00:33]} O-O {[%emt 0:00:40]} 7. Be2 {[%emt 0:00:12]} dxc4 {[%emt 0:00:19]} 8. Bxc4 {[%emt 0:00:16]} Qb6 {[%emt 0:02:29]} 9. O-O {[%emt 0:04:38]} Qxb3 {[%emt 0:01:33]} 10. Bxb3 {[%emt 0:00:10]} Na6 {[%emt 0:00:08]} 11. e4 {[%emt 0:02:18]} Bg4 {[%emt 0:08:14]} 12. Ne5 {[%emt 0:03:24]} Rad8 {[%emt 0:01:16]} 13. Be3 {[%emt 0:02:10]} Be6 {[%emt 0:01:19]} 14. Bxe6 {[%emt 0:01:01]} fxe6 {[%emt 0:00:07]} 15. Rfd1 {[%emt 0:03:58]} Nd7 {[%emt 0:01:30]} 16. Nd3 {[%emt 0:04:36]} Nb6 {[%emt 0:02:10]} 17. e5 {[%emt 0:01:22]} Nc4 {[%emt 0:03:25]} 18. Ne4 {[%emt 0:04:03]} Nxe3 {[%emt 0:01:48]} 19. fxe3 {[%emt 0:00:07]} Bh6 {[%emt 0:00:07]} 20. Re1 {[%emt 0:00:32]} b6 {[%emt 0:00:17]} 21. b4 {[%emt 0:01:44]} Nc7 {[%emt 0:00:51]} 22. g4 {[%emt 0:15:21]} Rf3 {[%emt 0:02:47]} 23. g5 {[%emt 0:01:23]} Bg7 {[%emt 0:00:08]} 24. Kg2 {[%emt 0:03:30]} Rdf8 {[%emt 0:00:08]} 25. Nf4 {[%emt 0:07:37]} Rxe3 {[%emt 0:03:57]} 26. Rxe3 {[%emt 0:00:36]} Rxf4 {[%emt 0:00:02]} 27. Rf1 {[%emt 0:05:05]} Nd5 {[%emt 0:00:41]} 28. Rxf4 {[%emt 0:04:59]} Nxe3+ {[%emt 0:00:05]} 29. Kf2 {[%emt 0:03:01]} Nc2 {[%emt 0:03:12]} 30. b5 {[%emt 0:12:32]} Nxd4 {[%emt 0:15:31]} 31. Nf6+ {[%emt 0:01:27]} exf6 {[%emt 0:01:04]} 32. Rxd4 {[%emt 0:00:10]} cxb5 {[%emt 0:00:08]} 33. gxf6 {[%emt 0:06:07]} Bf8 {[%emt 0:00:21]} 34. Rd6 {[%emt 0:01:01]} b4 {[%emt 0:12:14]} 35. Ke3 {[%emt 0:01:24]} a5 {[%emt 0:02:10]} 36. Kd4 {[%emt 0:01:04]} Kf7 {[%emt 0:06:57]} 37. Rxb6 {[%emt 0:01:11]} a4 {[%emt 0:00:02]} 38. Rb7+ {[%emt 0:00:23]} Kg8 {[%emt 0:00:04]} 39. Kc4 {[%emt 0:00:34]} g5 {[%emt 0:00:45]} 40. Ra7 {[%emt 0:00:00]} a3 {[%emt 0:00:00]} 41. h3 {[%emt 0:07:38]} h6 {[%emt 0:11:05]} 42. Rb7 {[%emt 0:01:56]} h5 {[%emt 0:00:33]} 43. Rc7 {[%emt 0:01:10]} Kh8 {[%emt 0:11:31]} 44. Re7 {[%emt 0:04:56]} g4 {[%emt 0:00:11]} 45. hxg4 {[%emt 0:00:15]} hxg4 {[%emt 0:00:10]} 46. Rd7 {[%emt 0:01:11]} b3 {[%emt 0:10:58]} 47. Kxb3 {[%emt 0:01:32]} Bc5 {[%emt 0:00:07]} 48. Rg7 {[%emt 0:00:17]} Bd4 {[%emt 0:01:05]} 49. Rg5 {[%emt 0:00:58]} g3 {[%emt 0:00:50]} 50. f7 {[%emt 0:00:12]} Bc5 {[%emt 0:00:02]} 51. Rxg3 {[%emt 0:00:11]} 1-0

[Event "2nd Irena Warakomska Memorial-A"]
[Site "Suwalki"]
[Date "2018.08.03"]
[Round "4"]
[White "Aleksandrov, Aleksej"]
[Black "Kosakowski, Jakub"]
[Result "1-0"]
[ECO "A45"]
[WhiteElo "2585"]
[BlackElo "2361"]
[Annotator "RC"]
[PlyCount "127"]
[EventDate "2018.08.01"]
[EventType "swiss"]
[EventCountry "POL"]
[SourceTitle "playchess.com"]
[Source "ChessBase"]
[SourceQuality "1"]
[TimeControl "40/5400+30:1800+30"]

1. d4 {[%emt 0:00:15]} Nf6 {[%emt 0:00:00]} 2. Bg5 {[%emt 0:00:08]} Ne4 {[%emt 0:00:36]} 3. Bf4 {[%emt 0:00:12]} c5 {[%emt 0:00:18]} 4. f3 {[%emt 0:00:20]} Nf6 {[%emt 0:00:10]} 5. d5 {[%emt 0:00:46]} Nh5 {[%emt 0:00:35]} 6. Be3 {[%emt 0:10:23]} e5 {[%emt 0:03:23]} 7. Bf2 {[%emt 0:04:48]} d6 {[%emt 0:00:14]} 8. e4 {[%emt 0:02:04]} Be7 {[%emt 0:00:22]} 9. Nc3 {[%emt 0:04:56]} O-O {[%emt 0:00:31]} 10. h4 {[%emt 0:00:18]} Na6 {[%emt 0:07:28]} 11. Qd2 {[%emt 0:05:28]} Rb8 {[%emt 0:01:33]} 12. Nge2 {[%emt 0:02:07]} g6 {[%emt 0:09:52]} 13. g4 {[%emt 0:09:05]} Ng7 {[%emt 0:00:30]} 14. Ng3 {[%emt 0:02:44]} f5 {[%emt 0:12:33]} 15. gxf5 {[%emt 0:05:33]} gxf5 {[%emt 0:00:09]} 16. exf5 {[%emt 0:00:23]} Nxf5 {[%emt 0:01:02]} 17. O-O-O {[%emt 0:12:35]} Kh8 {[%emt 0:03:24]} 18. Bd3 {[%emt 0:15:22]} Rf7 {[%emt 0:10:08]} 19. Bxf5 {[%emt 0:04:38]} Bxf5 {[%emt 0:01:27]} 20. Nce4 {[%emt 0:00:10]} Qd7 {[%emt 0:02:29]} 21. Be3 {[%emt 0:02:39]} Rg8 {[%emt 0:05:24]} 22. Bg5 {[%emt 0:01:52]} Nc7 {[%emt 0:01:33]} 23. Nxf5 {[%emt 0:06:32]} Rxf5 {[%emt 0:01:50]} 24. f4 {[%emt 0:00:12]} Ne8 {[%emt 0:05:39]} 25. Kb1 {[%emt 0:01:50]} Bxg5 {[%emt 0:01:45]} 26. fxg5 {[%emt 0:00:07]} Rf4 {[%emt 0:00:22]} 27. Rde1 {[%emt 0:00:47]} Qg4 {[%emt 0:02:27]} 28. Rhg1 {[%emt 0:04:53]} Qf5 {[%emt 0:03:06]} 29. Ng3 {[%emt 0:00:08]} Qf7 {[%emt 0:00:23]} 30. Rgf1 {[%emt 0:01:41]} Rf8 {[%emt 0:00:19]} 31. a3 {[%emt 0:00:39]} Nc7 {[%emt 0:00:54]} 32. Qa5 {[%emt 0:01:35]} Nxd5 {[%emt 0:01:02]} 33. Qxa7 {[%emt 0:00:09]} c4 {[%emt 0:02:18]} 34. Rxf4 {[%emt 0:00:45]} Nxf4 {[%emt 0:04:32]} 35. Ne4 {[%emt 0:00:20]} Qd5 {[%emt 0:02:19]} 36. Nf6 {[%emt 0:00:23]} Qb5 {[%emt 0:00:08]} 37. Rd1 {[%emt 0:00:48]} c3 {[%emt 0:00:34]} 38. b3 {[%emt 0:00:05]} Qe2 {[%emt 0:00:52]} 39. Rc1 {[%emt 0:00:10]} Qb5 {[%emt 0:02:45]} 40. Qe3 {[%emt 0:00:00]} Qc6 {[%emt 0:00:00]} 41. Rd1 {[%emt 0:03:19]} Ra8 {[%emt 0:08:20]} 42. Ne4 {[%emt 0:04:27]} Rxa3 {[%emt 0:01:32]} 43. Rxd6 {[%emt 0:08:28]} Qb5 {[%emt 0:01:27]} 44. Rd8+ {[%emt 0:00:23]} Kg7 {[%emt 0:00:20]} 45. Nxc3 {[%emt 0:00:05]} Qa5 {[%emt 0:03:58]} 46. Rd7+ {[%emt 0:03:55]} Kg8 {[%emt 0:01:34]} 47. Kb2 {[%emt 0:03:07]} Ra1 {[%emt 0:00:24]} 48. Na4 {[%emt 0:00:10]} Qe1 {[%emt 0:00:09]} 49. Qxe1 {[%emt 0:00:17]} Rxe1 {[%emt 0:00:05]} 50. Rxb7 {[%emt 0:00:40]} e4 {[%emt 0:00:32]} 51. Nc3 {[%emt 0:00:47]} e3 {[%emt 0:00:44]} 52. Re7 {[%emt 0:00:28]} e2 {[%emt 0:01:17]} 53. b4 {[%emt 0:01:11]} Rh1 {[%emt 0:00:11]} 54. Nxe2 {[%emt 0:00:06]} Re1 {[%emt 0:00:29]} 55. Re4 {[%emt 0:03:16]} Nxe2 {[%emt 0:00:13]} 56. b5 {[%emt 0:00:03]} Rb1+ {[%emt 0:00:20]} 57. Kxb1 {[%emt 0:00:19]} Nc3+ {[%emt 0:00:04]} 58. Kb2 {[%emt 0:00:11]} Nxe4 {[%emt 0:00:05]} 59. b6 {[%emt 0:01:36]} Nc5 {[%emt 0:01:47]} 60. Ka3 {[%emt 0:00:06]} Kf7 {[%emt 0:00:35]} 61. Kb4 {[%emt 0:00:51]} Nd7 {[%emt 0:00:41]} 62. Kb5 {[%emt 0:00:21]} Ke7 {[%emt 0:00:36]} 63. h5 {[%emt 0:02:13]} Kd8 {[%emt 0:00:08]} 64. g6 {[%emt 0:00:15]} 1-0